[Event "44th Chess Olympiad Women 2022"]
[Site "Chennai"]
[Date "2022.08.01"]
[Round "4.44"]
[White "Hotami, Mutriba"]
[Black "Reifer-Belle, Chanon"]
[Result "1-0"]
[WhiteElo "1846"]
[BlackElo "1213"]
[Annotator "NA RC"]
[PlyCount "101"]
[EventDate "2022.??.??"]
[TimeControl "60"]

1. e4 {[%emt 0:00:02]} e5 {[%emt 0:00:04]} 2. Nf3 {[%emt 0:00:12]} Nc6 {
[%emt 0:00:06]} 3. Bb5 {[%emt 0:00:04]} a6 {[%emt 0:00:07]} 4. Ba4 {[%emt 0:00:
00]} Nf6 {[%emt 0:00:08]} 5. O-O {[%emt 0:00:06]} Be7 {[%emt 0:01:02]} 6. Re1 {
[%emt 0:00:06]} b5 {[%emt 0:00:07]} 7. Bb3 {[%emt 0:00:07]} d6 {[%emt 0:00:29]}
8. c3 {[%emt 0:01:10]} O-O {[%emt 0:02:41]} 9. d4 {[%emt 0:00:13]} Bg4 {
[%emt 0:01:16]} 10. Be3 {[%emt 0:00:31]} exd4 {[%emt 0:12:09]} 11. cxd4 {
[%emt 0:00:09]} Na5 {[%emt 0:00:43]} 12. Bc2 {[%emt 0:00:23]} Nc4 {[%emt 0:00:
00]} 13. Bc1 {[%emt 0:00:18]} c5 {[%emt 0:03:02]} 14. b3 {[%emt 0:03:57]} Nb6 {
[%emt 0:00:22]} 15. Bb2 {[%emt 0:02:08]} Re8 {[%emt 0:03:35]} 16. Nbd2 {
[%emt 0:02:26]} Bf8 {[%emt 0:02:30]} 17. Qb1 {[%emt 0:03:12]} h6 {[%emt 0:00:
00]} 18. h3 {[%emt 0:01:28]} Bd7 {[%emt 0:04:43]} 19. Nf1 {[%emt 0:02:13]} Bc6
{[%emt 0:04:01]} 20. Ng3 {[%emt 0:03:21]} Rc8 {[%emt 0:04:31]} 21. Nf5 {
[%emt 0:13:12]} Bb7 {[%emt 0:02:55]} 22. dxc5 {[%emt 0:00:34]} dxc5 {[%emt 0:
00:00]} 23. Rd1 {[%emt 0:00:20]} Nfd7 {[%emt 0:04:43]} 24. Be5 {[%emt 0:11:07]}
Re6 {[%emt 0:04:28]} 25. Qb2 {[%emt 0:02:55]} f6 {[%emt 0:03:04]} 26. Bd6 {
[%emt 0:08:59]} Bxe4 {[%emt 0:03:59]} 27. Bxe4 {[%emt 0:00:05]} Rxe4 {[%emt 0:
00:00]} 28. Bxf8 {[%emt 0:00:30]} Qxf8 {[%emt 0:00:30]} 29. Nd6 {[%emt 0:00:30]
} Rce8 {[%emt 0:00:30]} 30. Nf5 {[%emt 0:00:05]} Rc8 {[%emt 0:02:02]} 31. Nd6 {
[%emt 0:00:05]} Rce8 {[%emt 0:02:59]} 32. Nxe8 {[%emt 0:01:16]} Qxe8 {[%emt 0:
00:00]} 33. Re1 {[%emt 0:00:13]} Qg6 {[%emt 0:02:00]} 34. Rxe4 {[%emt 0:00:44]}
Qxe4 {[%emt 0:00:33]} 35. Re1 {[%emt 0:00:08]} Qd3 {[%emt 0:05:33]} 36. Qe2 {
[%emt 0:03:39]} Qxe2 {[%emt 0:02:30]} 37. Rxe2 {[%emt 0:00:03]} c4 {[%emt 0:00:
00]} 38. bxc4 {[%emt 0:01:59]} Nxc4 {[%emt 0:00:25]} 39. Kf1 {[%emt 0:01:48]}
Kf7 {[%emt 0:02:54]} 40. Ke1 {[%emt 0:00:39]} Nde5 {[%emt 0:02:22]} 41. Nxe5+ {
[%emt 0:30:20]} Nxe5 {[%emt 0:30:07]} 42. Kd2 {[%emt 0:00:19]} Ke6 {[%emt 0:00:
00]} 43. f4 {[%emt 0:00:09]} g5 {[%emt 0:02:16]} 44. fxe5 {[%emt 0:00:08]} fxe5
{[%emt 0:00:06]} 45. g4 {[%emt 0:00:12]} b4 {[%emt 0:01:12]} 46. Ke3 {[%emt 0:
00:00]} Kd5 {[%emt 0:03:24]} 47. Rd2+ {[%emt 0:00:44]} Kc4 {[%emt 0:05:31]} 48.
Ke4 {[%emt 0:00:11]} b3 {[%emt 0:01:10]} 49. axb3+ {[%emt 0:00:09]} Kxb3 {
[%emt 0:00:12]} 50. Kxe5 {[%emt 0:00:07]} a5 {[%emt 0:01:07]} 51. Kf6 {[%emt 0:
00:00]} 1-0

[Event "44th Chess Olympiad Women 2022"]
[Site "Chennai"]
[Date "2022.08.01"]
[Round "4.45"]
[White "Badenhorst, Chloe"]
[Black "Mejia, Camila"]
[Result "1-0"]
[WhiteElo "1703"]
[BlackElo "1330"]
[Annotator "NA RC"]
[PlyCount "37"]
[EventDate "2022.??.??"]
[TimeControl "60"]

1. e4 {[%emt 0:00:02]} e5 {[%emt 0:00:50]} 2. Nc3 {[%emt 0:00:05]} Nf6 {
[%emt 0:00:46]} 3. f4 {[%emt 0:00:14]} d5 {[%emt 0:00:48]} 4. fxe5 {[%emt 0:00:
00]} Nxe4 {[%emt 0:00:20]} 5. Qf3 {[%emt 0:00:13]} Nxc3 {[%emt 0:06:44]} 6.
dxc3 {[%emt 0:00:06]} Bc5 {[%emt 0:01:21]} 7. Bf4 {[%emt 0:03:57]} O-O {
[%emt 0:03:04]} 8. O-O-O {[%emt 0:00:55]} Be6 {[%emt 0:02:34]} 9. Bd3 {[%emt 0:
00:00]} Qd7 {[%emt 0:02:25]} 10. Qg3 {[%emt 0:02:52]} Re8 {[%emt 0:03:49]} 11.
Nf3 {[%emt 0:01:19]} Nc6 {[%emt 0:01:55]} 12. Qh4 {[%emt 0:08:35]} Bf5 {
[%emt 0:04:01]} 13. Rhf1 {[%emt 0:10:01]} g6 {[%emt 0:11:05]} 14. Ng5 {[%emt 0:
00:00]} h5 {[%emt 0:00:55]} 15. Bxf5 {[%emt 0:12:15]} Qxf5 {[%emt 0:05:50]} 16.
Bd2 {[%emt 0:06:25]} Qxe5 {[%emt 0:11:35]} 17. Nxf7 {[%emt 0:02:38]} Qe7 {
[%emt 0:10:47]} 18. Qg3 {[%emt 0:02:41]} Rf8 {[%emt 0:04:13]} 19. Qxg6# {
[%emt 0:00:59]} 1-0

[Event "44th Chess Olympiad Women 2022"]
[Site "Chennai"]
[Date "2022.08.01"]
[Round "4.45"]
[White "February, Jesse Nikki"]
[Black "Viana, Valeria"]
[Result "1-0"]
[WhiteElo "1872"]
[BlackElo "1441"]
[Annotator "NA RC"]
[PlyCount "109"]
[EventDate "2022.??.??"]
[TimeControl "60"]

1. e4 {[%emt 0:00:04]} c6 {[%emt 0:00:10]} 2. d4 {[%emt 0:00:11]} d5 {[%emt 0:
00:00]} 3. exd5 {[%emt 0:00:13]} cxd5 {[%emt 0:00:17]} 4. Bd3 {[%emt 0:00:09]}
Nc6 {[%emt 0:00:45]} 5. c3 {[%emt 0:00:45]} Nf6 {[%emt 0:00:45]} 6. Qb3 {
[%emt 0:03:21]} g6 {[%emt 0:03:44]} 7. Nf3 {[%emt 0:02:44]} Bg7 {[%emt 0:04:02]
} 8. O-O {[%emt 0:02:16]} O-O {[%emt 0:00:34]} 9. Re1 {[%emt 0:01:16]} Qc7 {
[%emt 0:02:41]} 10. Bg5 {[%emt 0:01:21]} Rd8 {[%emt 0:04:32]} 11. Nbd2 {
[%emt 0:03:11]} a6 {[%emt 0:03:25]} 12. h3 {[%emt 0:04:51]} Be6 {[%emt 0:05:41]
} 13. Bh4 {[%emt 0:02:25]} h6 {[%emt 0:04:19]} 14. Qc2 {[%emt 0:02:01]} Qd7 {
[%emt 0:12:44]} 15. Bg3 {[%emt 0:04:27]} Rac8 {[%emt 0:05:22]} 16. a3 {[%emt 0:
00:00]} Nh5 {[%emt 0:04:17]} 17. Bh2 {[%emt 0:01:34]} Kh8 {[%emt 0:07:56]} 18.
Nb3 {[%emt 0:03:12]} b6 {[%emt 0:08:44]} 19. Bxa6 {[%emt 0:01:09]} Ra8 {
[%emt 0:01:02]} 20. Bb5 {[%emt 0:03:00]} Bf5 {[%emt 0:03:40]} 21. Qe2 {[%emt 0:
00:00]} Be6 {[%emt 0:01:39]} 22. Be5 {[%emt 0:05:10]} Nf6 {[%emt 0:00:53]} 23.
Nbd2 {[%emt 0:06:15]} Qc8 {[%emt 0:03:17]} 24. Bh2 {[%emt 0:00:44]} Ra7 {
[%emt 0:01:12]} 25. Bxc6 {[%emt 0:00:33]} Qxc6 {[%emt 0:01:10]} 26. Ne5 {
[%emt 0:00:10]} Qc8 {[%emt 0:00:44]} 27. Nxg6+ {[%emt 0:00:16]} Kg8 {[%emt 0:
00:00]} 28. Nf4 {[%emt 0:01:30]} Bf5 {[%emt 0:01:09]} 29. Nh5 {[%emt 0:01:46]}
Nxh5 {[%emt 0:03:51]} 30. Qxh5 {[%emt 0:01:28]} Bg6 {[%emt 0:00:30]} 31. Qh4 {
[%emt 0:01:01]} Rdd7 {[%emt 0:02:14]} 32. Be5 {[%emt 0:01:38]} f6 {[%emt 0:00:
00]} 33. Bf4 {[%emt 0:00:12]} Kf7 {[%emt 0:01:06]} 34. Re3 {[%emt 0:02:31]} Rd8
{[%emt 0:03:00]} 35. Rae1 {[%emt 0:00:45]} Re8 {[%emt 0:00:49]} 36. Nf3 {
[%emt 0:02:47]} Qd7 {[%emt 0:03:42]} 37. Qg3 {[%emt 0:02:10]} Qb5 {[%emt 0:00:
00]} 38. Nh4 {[%emt 0:00:36]} Bh7 {[%emt 0:00:41]} 39. Qg4 {[%emt 0:01:22]} Be4
{[%emt 0:01:56]} 40. f3 {[%emt 0:00:34]} Bh7 {[%emt 0:00:48]} 41. Qh5+ {
[%emt 0:30:41]} Kf8 {[%emt 0:30:10]} 42. Bxh6 {[%emt 0:00:58]} e5 {[%emt 0:00:
00]} 43. dxe5 {[%emt 0:01:48]} fxe5 {[%emt 0:00:00]} 44. Rxe5 {[%emt 0:00:00]}
Qc5+ {[%emt 0:00:00]} 45. Kh1 {[%emt 0:00:00]} Rxe5 {[%emt 0:00:00]} 46. Rxe5 {
[%emt 0:00:00]} Qc6 {[%emt 0:00:00]} 47. Bxg7+ {[%emt 0:00:00]} Rxg7 {[%emt 0:
00:00]} 48. Nf5 {[%emt 0:00:00]} Bxf5 {[%emt 0:00:00]} 49. Rxf5+ {[%emt 0:00:
00]} Kg8 {[%emt 0:00:00]} 50. Rg5 {[%emt 0:00:00]} Qc4 {[%emt 0:00:00]} 51.
Rxg7+ {[%emt 0:00:00]} Kxg7 {[%emt 0:00:00]} 52. Qg4+ {[%emt 0:00:00]} Qxg4 {
[%emt 0:00:00]} 53. fxg4 {[%emt 0:00:00]} Kg6 {[%emt 0:00:00]} 54. Kg1 {
[%emt 0:00:00]} Kg5 {[%emt 0:00:00]} 55. Kf2 {[%emt 0:00:00]} 1-0

[Event "44th Chess Olympiad Women 2022"]
[Site "Chennai"]
[Date "2022.08.01"]
[Round "4.45"]
[White "Garcia, Andrea Nicole"]
[Black "Van Zyl, Charlize"]
[Result "0-1"]
[WhiteElo "1631"]
[BlackElo "1704"]
[Annotator "NA RC"]
[PlyCount "72"]
[EventDate "2022.??.??"]
[TimeControl "60"]

1. e4 {[%emt 0:00:03]} c6 {[%emt 0:00:06]} 2. d4 {[%emt 0:00:06]} d5 {[%emt 0:
00:00]} 3. Nd2 {[%emt 0:00:28]} dxe4 {[%emt 0:00:09]} 4. Nxe4 {[%emt 0:00:06]}
Nf6 {[%emt 0:00:04]} 5. Nxf6+ {[%emt 0:04:42]} exf6 {[%emt 0:00:05]} 6. Nf3 {
[%emt 0:00:54]} Bg4 {[%emt 0:01:40]} 7. Be2 {[%emt 0:03:40]} Bd6 {[%emt 0:00:
00]} 8. h3 {[%emt 0:00:26]} Bh5 {[%emt 0:00:36]} 9. c3 {[%emt 0:02:11]} O-O {
[%emt 0:00:29]} 10. O-O {[%emt 0:01:12]} Re8 {[%emt 0:02:31]} 11. Re1 {[%emt 0:
00:00]} Nd7 {[%emt 0:01:07]} 12. Be3 {[%emt 0:13:50]} Qc7 {[%emt 0:00:50]} 13.
Nh4 {[%emt 0:10:24]} Bg6 {[%emt 0:10:58]} 14. Nxg6 {[%emt 0:00:35]} hxg6 {
[%emt 0:00:05]} 15. a3 {[%emt 0:09:52]} f5 {[%emt 0:00:42]} 16. Bg5 {[%emt 0:
00:00]} Bh2+ {[%emt 0:03:39]} 17. Kh1 {[%emt 0:02:29]} Bf4 {[%emt 0:00:05]} 18.
Bxf4 {[%emt 0:00:44]} Qxf4 {[%emt 0:00:05]} 19. Qb3 {[%emt 0:05:37]} Nb6 {
[%emt 0:06:11]} 20. Bc4 {[%emt 0:04:27]} Nxc4 {[%emt 0:01:46]} 21. Qxc4 {
[%emt 0:00:28]} Qxf2 {[%emt 0:00:08]} 22. Rf1 {[%emt 0:05:44]} Qe2 {[%emt 0:00:
00]} 23. Qxe2 {[%emt 0:02:59]} Rxe2 {[%emt 0:00:05]} 24. Rab1 {[%emt 0:04:23]}
Rae8 {[%emt 0:00:19]} 25. Kg1 {[%emt 0:00:19]} f6 {[%emt 0:04:05]} 26. Rf2 {
[%emt 0:00:25]} Re1+ {[%emt 0:03:10]} 27. Rxe1 {[%emt 0:00:11]} Rxe1+ {[%emt 0:
00:00]} 28. Kh2 {[%emt 0:03:04]} Kf7 {[%emt 0:00:15]} 29. Kg3 {[%emt 0:01:01]}
Ke6 {[%emt 0:00:45]} 30. Kf3 {[%emt 0:05:38]} Kd5 {[%emt 0:03:02]} 31. Re2 {
[%emt 0:00:40]} Rxe2 {[%emt 0:00:17]} 32. Kxe2 {[%emt 0:00:05]} Ke4 {[%emt 0:
00:00]} 33. a4 {[%emt 0:00:40]} g5 {[%emt 0:00:37]} 34. b4 {[%emt 0:01:18]} g4
{[%emt 0:00:16]} 35. hxg4 {[%emt 0:03:54]} fxg4 {[%emt 0:00:05]} 36. b5 {
[%emt 0:01:54]} f5 {[%emt 0:01:09]} 0-1

[Event "44th Chess Olympiad Women 2022"]
[Site "Chennai"]
[Date "2022.08.01"]
[Round "4.45"]
[White "Maradiaga, Cesia"]
[Black "Selkirk, Rebecca"]
[Result "0-1"]
[WhiteElo "1533"]
[BlackElo "1745"]
[Annotator "NA RC"]
[PlyCount "66"]
[EventDate "2022.??.??"]
[TimeControl "60"]

1. Nf3 {[%emt 0:00:02]} Nf6 {[%emt 0:00:09]} 2. b3 {[%emt 0:00:10]} d5 {
[%emt 0:00:05]} 3. Bb2 {[%emt 0:00:10]} c5 {[%emt 0:00:09]} 4. c4 {[%emt 0:00:
00]} d4 {[%emt 0:01:27]} 5. d3 {[%emt 0:01:39]} Nc6 {[%emt 0:00:28]} 6. Nbd2 {
[%emt 0:00:48]} e5 {[%emt 0:00:47]} 7. Ne4 {[%emt 0:07:41]} Nxe4 {[%emt 0:00:
00]} 8. dxe4 {[%emt 0:00:57]} f5 {[%emt 0:01:16]} 9. Nd2 {[%emt 0:08:35]} fxe4
{[%emt 0:02:34]} 10. Nxe4 {[%emt 0:02:45]} Bf5 {[%emt 0:00:29]} 11. Ng3 {
[%emt 0:07:02]} Bg6 {[%emt 0:00:31]} 12. Bc1 {[%emt 0:07:48]} Nb4 {[%emt 0:00:
00]} 13. e4 {[%emt 0:18:11]} dxe3 {[%emt 0:11:03]} 14. Qxd8+ {[%emt 0:13:49]}
Rxd8 {[%emt 0:00:07]} 15. fxe3 {[%emt 0:04:51]} Nc2+ {[%emt 0:00:18]} 16. Kf2 {
[%emt 0:01:28]} Nxa1 {[%emt 0:00:17]} 17. Be2 {[%emt 0:01:25]} Be7 {[%emt 0:00:
00]} 18. Bf3 {[%emt 0:04:33]} O-O {[%emt 0:02:16]} 19. e4 {[%emt 0:00:35]} Nc2
{[%emt 0:00:48]} 20. h4 {[%emt 0:01:44]} Nb4 {[%emt 0:01:27]} 21. Be3 {[%emt 0:
00:00]} Nxa2 {[%emt 0:01:24]} 22. h5 {[%emt 0:00:17]} Be8 {[%emt 0:00:29]} 23.
Nf5 {[%emt 0:00:16]} Rxf5 {[%emt 0:08:26]} 24. exf5 {[%emt 0:00:32]} Nb4 {
[%emt 0:00:13]} 25. h6 {[%emt 0:00:50]} Bc6 {[%emt 0:03:46]} 26. Bg4 {[%emt 0:
00:00]} Bf6 {[%emt 0:01:27]} 27. hxg7 {[%emt 0:01:15]} Rd3 {[%emt 0:02:42]} 28.
Rh6 {[%emt 0:02:59]} Kxg7 {[%emt 0:00:38]} 29. Rh2 {[%emt 0:01:07]} Rxb3 {
[%emt 0:00:43]} 30. Bd1 {[%emt 0:00:35]} Rb2+ {[%emt 0:00:35]} 31. Kf1 {
[%emt 0:00:56]} b6 {[%emt 0:03:24]} 32. Bf2 {[%emt 0:01:36]} Nd3 {[%emt 0:00:
00]} 33. g4 {[%emt 0:00:42]} Nxf2 {[%emt 0:01:24]} 0-1

[Event "44th Chess Olympiad Women 2022"]
[Site "Chennai"]
[Date "2022.08.01"]
[Round "4.46"]
[White "Abera, Mekdes Demssie"]
[Black "A-ALI, Sali Abbas Abdulzah"]
[Result "0-1"]
[WhiteElo "1342"]
[BlackElo "1864"]
[Annotator "NA RC"]
[PlyCount "58"]
[EventDate "2022.??.??"]
[TimeControl "60"]

1. d4 {[%emt 0:00:05]} d5 {[%emt 0:00:05]} 2. e3 {[%emt 0:00:09]} Nf6 {[%emt 0:
00:00]} 3. Nc3 {[%emt 0:00:06]} e6 {[%emt 0:00:12]} 4. Nf3 {[%emt 0:00:08]} c5
{[%emt 0:00:38]} 5. Bd2 {[%emt 0:00:20]} Nc6 {[%emt 0:00:07]} 6. Bb5 {[%emt 0:
00:00]} a6 {[%emt 0:00:43]} 7. Bxc6+ {[%emt 0:00:41]} bxc6 {[%emt 0:00:06]} 8.
Ne5 {[%emt 0:02:12]} Qc7 {[%emt 0:01:38]} 9. O-O {[%emt 0:03:04]} Bd6 {[%emt 0:
00:00]} 10. f4 {[%emt 0:02:26]} Bb7 {[%emt 0:03:01]} 11. Ne2 {[%emt 0:02:28]}
Ne4 {[%emt 0:01:51]} 12. Ng3 {[%emt 0:02:56]} Nxg3 {[%emt 0:04:22]} 13. hxg3 {
[%emt 0:00:14]} O-O {[%emt 0:02:58]} 14. b3 {[%emt 0:04:58]} f6 {[%emt 0:07:51]
} 15. Ng4 {[%emt 0:05:08]} a5 {[%emt 0:07:06]} 16. Kf2 {[%emt 0:08:44]} cxd4 {
[%emt 0:08:19]} 17. exd4 {[%emt 0:01:33]} e5 {[%emt 0:00:16]} 18. dxe5 {
[%emt 0:01:02]} fxe5 {[%emt 0:00:18]} 19. Kg1 {[%emt 0:03:57]} exf4 {[%emt 0:
00:00]} 20. gxf4 {[%emt 0:00:12]} Bxf4 {[%emt 0:00:31]} 21. Bc3 {[%emt 0:02:43]
} c5 {[%emt 0:05:49]} 22. Qe1 {[%emt 0:06:06]} d4 {[%emt 0:05:02]} 23. Bb2 {
[%emt 0:04:26]} Qc6 {[%emt 0:01:26]} 24. Rf2 {[%emt 0:02:55]} Rae8 {[%emt 0:00:
00]} 25. Qxa5 {[%emt 0:15:15]} Bc8 {[%emt 0:01:20]} 26. Raf1 {[%emt 0:02:37]}
Bc7 {[%emt 0:04:35]} 27. Ne5 {[%emt 0:08:17]} Bxe5 {[%emt 0:02:02]} 28. Rxf8+ {
[%emt 0:00:22]} Rxf8 {[%emt 0:00:07]} 29. Qd8 {[%emt 0:00:52]} Rxd8 {[%emt 0:
00:00]} 0-1

[Event "44th Chess Olympiad Women 2022"]
[Site "Chennai"]
[Date "2022.08.01"]
[Round "4.46"]
[White "Al-Fayyadh, Yamama Asif Abdula"]
[Black "Ayele, Hana Mulugeta"]
[Result "1-0"]
[WhiteElo "1666"]
[BlackElo "1437"]
[Annotator "NA RC"]
[PlyCount "57"]
[EventDate "2022.??.??"]
[TimeControl "60"]

1. e4 {[%emt 0:00:03]} e5 {[%emt 0:01:21]} 2. Nf3 {[%emt 0:00:06]} Nc6 {
[%emt 0:00:10]} 3. Bb5 {[%emt 0:00:06]} a6 {[%emt 0:00:20]} 4. Ba4 {[%emt 0:00:
00]} Nf6 {[%emt 0:00:28]} 5. O-O {[%emt 0:00:55]} Bd6 {[%emt 0:00:21]} 6. Re1 {
[%emt 0:01:13]} O-O {[%emt 0:01:18]} 7. d4 {[%emt 0:05:55]} Re8 {[%emt 0:03:47]
} 8. Bxc6 {[%emt 0:01:43]} dxc6 {[%emt 0:00:25]} 9. dxe5 {[%emt 0:00:33]} Bg4 {
[%emt 0:13:54]} 10. exd6 {[%emt 0:06:07]} cxd6 {[%emt 0:01:32]} 11. Nc3 {
[%emt 0:02:12]} h6 {[%emt 0:02:07]} 12. Qd3 {[%emt 0:02:56]} Qc7 {[%emt 0:00:
00]} 13. Bf4 {[%emt 0:05:25]} Rad8 {[%emt 0:04:11]} 14. h3 {[%emt 0:01:56]} Bh5
{[%emt 0:01:57]} 15. Nd4 {[%emt 0:05:53]} Bg6 {[%emt 0:02:24]} 16. Nf5 {
[%emt 0:03:07]} Bxf5 {[%emt 0:05:25]} 17. exf5 {[%emt 0:00:07]} Qb6 {[%emt 0:
00:00]} 18. Be3 {[%emt 0:07:41]} Qc7 {[%emt 0:04:20]} 19. Bd4 {[%emt 0:04:35]}
Nd7 {[%emt 0:04:08]} 20. Qg3 {[%emt 0:02:56]} f6 {[%emt 0:04:33]} 21. Ne4 {
[%emt 0:01:27]} Qb8 {[%emt 0:11:29]} 22. Bxf6 {[%emt 0:01:54]} g5 {[%emt 0:00:
00]} 23. Bxd8 {[%emt 0:02:24]} Rxd8 {[%emt 0:01:40]} 24. Nxd6 {[%emt 0:00:26]}
Nf6 {[%emt 0:01:48]} 25. Re6 {[%emt 0:02:46]} Kg7 {[%emt 0:03:05]} 26. Qe5 {
[%emt 0:05:07]} Rf8 {[%emt 0:03:08]} 27. Rxf6 {[%emt 0:00:55]} Rxf6 {[%emt 0:
00:00]} 28. Ne8+ {[%emt 0:00:07]} Qxe8 {[%emt 0:00:46]} 29. Qxe8 {[%emt 0:00:
00]} 1-0

[Event "44th Chess Olympiad Women 2022"]
[Site "Chennai"]
[Date "2022.08.01"]
[Round "4.46"]
[White "Haile, Lidet Abate"]
[Black "Al-Fayyadh, Zainab Asif Abdulah"]
[Result "0-1"]
[WhiteElo "1624"]
[BlackElo "1749"]
[Annotator "NA RC"]
[PlyCount "137"]
[EventDate "2022.??.??"]
[TimeControl "60"]

1. e4 {[%emt 0:01:18]} e5 {[%emt 0:00:05]} 2. Nf3 {[%emt 0:00:06]} Nc6 {
[%emt 0:00:04]} 3. Bc4 {[%emt 0:00:11]} Bc5 {[%emt 0:00:04]} 4. O-O {[%emt 0:
00:00]} Nf6 {[%emt 0:00:04]} 5. d3 {[%emt 0:00:13]} d6 {[%emt 0:00:06]} 6. Bg5
{[%emt 0:01:18]} Be6 {[%emt 0:00:28]} 7. Bb3 {[%emt 0:00:23]} h6 {[%emt 0:00:
00]} 8. Bh4 {[%emt 0:01:34]} Bxb3 {[%emt 0:00:16]} 9. axb3 {[%emt 0:00:23]} g5
{[%emt 0:00:12]} 10. Bg3 {[%emt 0:01:44]} h5 {[%emt 0:00:24]} 11. h4 {[%emt 0:
00:00]} g4 {[%emt 0:01:37]} 12. Nfd2 {[%emt 0:01:14]} Qd7 {[%emt 0:03:52]} 13.
c3 {[%emt 0:00:42]} O-O-O {[%emt 0:00:27]} 14. b4 {[%emt 0:00:30]} Bb6 {
[%emt 0:00:36]} 15. Nc4 {[%emt 0:00:15]} Nh7 {[%emt 0:04:13]} 16. Nxb6+ {
[%emt 0:00:48]} axb6 {[%emt 0:00:24]} 17. Ra8+ {[%emt 0:02:17]} Nb8 {[%emt 0:
00:00]} 18. Qb3 {[%emt 0:00:49]} f5 {[%emt 0:04:33]} 19. exf5 {[%emt 0:07:31]}
Qxf5 {[%emt 0:02:00]} 20. c4 {[%emt 0:01:17]} Nf6 {[%emt 0:02:53]} 21. Na3 {
[%emt 0:04:27]} Kd7 {[%emt 0:02:00]} 22. c5 {[%emt 0:07:59]} Qe6 {[%emt 0:00:
00]} 23. Nc4 {[%emt 0:02:04]} b5 {[%emt 0:02:02]} 24. Nd2 {[%emt 0:04:07]} Qxb3
{[%emt 0:01:50]} 25. Nxb3 {[%emt 0:00:11]} Nc6 {[%emt 0:00:31]} 26. Rxd8+ {
[%emt 0:01:14]} Rxd8 {[%emt 0:00:05]} 27. cxd6 {[%emt 0:00:25]} cxd6 {[%emt 0:
00:00]} 28. d4 {[%emt 0:04:00]} e4 {[%emt 0:05:42]} 29. f3 {[%emt 0:04:05]}
gxf3 {[%emt 0:02:45]} 30. gxf3 {[%emt 0:00:16]} Rg8 {[%emt 0:01:36]} 31. Kf2 {
[%emt 0:01:58]} e3+ {[%emt 0:01:08]} 32. Kg2 {[%emt 0:01:34]} Nxb4 {[%emt 0:00:
00]} 33. Nc1 {[%emt 0:02:38]} Nfd5 {[%emt 0:03:03]} 34. Kh2 {[%emt 0:02:13]}
Rc8 {[%emt 0:04:41]} 35. b3 {[%emt 0:02:56]} Rc2+ {[%emt 0:02:20]} 36. Kh1 {
[%emt 0:00:57]} Rd2 {[%emt 0:02:06]} 37. f4 {[%emt 0:00:55]} Nc2 {[%emt 0:00:
00]} 38. f5 {[%emt 0:02:21]} Nf6 {[%emt 0:05:45]} 39. Bf4 {[%emt 0:06:58]} e2 {
[%emt 0:01:42]} 40. Rg1 {[%emt 0:01:54]} Rxd4 {[%emt 0:06:21]} 41. Nxe2 {
[%emt 0:30:20]} Re4 {[%emt 0:30:59]} 42. Bg5 {[%emt 0:09:12]} Rxe2 {[%emt 0:00:
00]} 43. Bxf6 {[%emt 0:00:31]} Ne1 {[%emt 0:00:13]} 44. Rf1 {[%emt 0:02:16]}
Nd3 {[%emt 0:03:46]} 45. Kg1 {[%emt 0:03:47]} Ne5 {[%emt 0:02:02]} 46. Bg5 {
[%emt 0:04:09]} Rb2 {[%emt 0:05:43]} 47. f6 {[%emt 0:02:11]} Ke8 {[%emt 0:00:
00]} 48. Rd1 {[%emt 0:01:41]} Nf3+ {[%emt 0:06:30]} 49. Kf1 {[%emt 0:00:28]}
Rxb3 {[%emt 0:01:39]} 50. Rxd6 {[%emt 0:00:38]} Nxg5 {[%emt 0:00:44]} 51. hxg5
{[%emt 0:00:11]} Rg3 {[%emt 0:00:26]} 52. Rb6 {[%emt 0:01:36]} Rxg5 {[%emt 0:
00:00]} 53. Rxb7 {[%emt 0:00:13]} h4 {[%emt 0:00:53]} 54. Kf2 {[%emt 0:01:25]}
Kf8 {[%emt 0:02:40]} 55. Rh7 {[%emt 0:01:34]} Rg4 {[%emt 0:00:22]} 56. Kf3 {
[%emt 0:00:36]} Rc4 {[%emt 0:00:12]} 57. Ke3 {[%emt 0:00:48]} b4 {[%emt 0:00:
00]} 58. Kd3 {[%emt 0:00:25]} Rc3+ {[%emt 0:00:15]} 59. Kd4 {[%emt 0:00:19]} h3
{[%emt 0:00:19]} 60. Ke5 {[%emt 0:03:16]} b3 {[%emt 0:00:00]} 61. Ke6 {[%emt 0:
00:00]} Re3+ {[%emt 0:00:00]} 62. Kf5 {[%emt 0:00:22]} b2 {[%emt 0:00:00]} 63.
Rh8+ {[%emt 0:00:00]} Kf7 {[%emt 0:00:00]} 64. Rh7+ {[%emt 0:00:00]} Ke8 {
[%emt 0:00:00]} 65. Rb7 {[%emt 0:00:00]} h2 {[%emt 0:00:00]} 66. f7+ {[%emt 0:
00:00]} Kf8 {[%emt 0:00:00]} 67. Kg6 {[%emt 0:00:00]} Rg3+ {[%emt 0:00:00]} 68.
Kf6 {[%emt 0:00:00]} Rf3+ {[%emt 0:00:00]} 69. Ke5 {[%emt 0:00:03]} 0-1

[Event "44th Chess Olympiad Women 2022"]
[Site "Chennai"]
[Date "2022.08.01"]
[Round "4.46"]
[White "Sara Masood Abdullah"]
[Black "Bantiwalu, Aster Melake"]
[Result "1-0"]
[WhiteElo "1677"]
[BlackElo "1425"]
[Annotator "NA RC"]
[PlyCount "59"]
[EventDate "2022.??.??"]
[TimeControl "60"]

1. e4 {[%emt 0:00:04]} e5 {[%emt 0:00:25]} 2. Nf3 {[%emt 0:00:14]} Nc6 {
[%emt 0:00:21]} 3. Nc3 {[%emt 0:00:27]} Bc5 {[%emt 0:00:49]} 4. Nxe5 {[%emt 0:
00:00]} Bxf2+ {[%emt 0:01:54]} 5. Kxf2 {[%emt 0:00:08]} Nxe5 {[%emt 0:00:22]}
6. d4 {[%emt 0:01:10]} Ng6 {[%emt 0:01:09]} 7. Bc4 {[%emt 0:01:00]} Qh4+ {
[%emt 0:03:12]} 8. g3 {[%emt 0:03:00]} Qf6+ {[%emt 0:02:43]} 9. Kg2 {[%emt 0:
00:00]} N8e7 {[%emt 0:15:00]} 10. Rf1 {[%emt 0:02:38]} Qc6 {[%emt 0:01:06]} 11.
Bxf7+ {[%emt 0:01:14]} Kd8 {[%emt 0:00:09]} 12. Be3 {[%emt 0:06:10]} d6 {
[%emt 0:01:13]} 13. Nd5 {[%emt 0:09:26]} Nxd5 {[%emt 0:04:31]} 14. Bxd5 {
[%emt 0:00:11]} Qd7 {[%emt 0:04:35]} 15. Bg5+ {[%emt 0:00:54]} Ne7 {[%emt 0:00:
00]} 16. Rf7 {[%emt 0:03:35]} Re8 {[%emt 0:02:30]} 17. Qf3 {[%emt 0:02:26]} c6
{[%emt 0:01:32]} 18. Bb3 {[%emt 0:05:04]} h6 {[%emt 0:00:20]} 19. Rxe7 {
[%emt 0:02:24]} Qh3+ {[%emt 0:04:28]} 20. Kg1 {[%emt 0:00:17]} hxg5 {[%emt 0:
00:00]} 21. Rxg7 {[%emt 0:00:48]} Bd7 {[%emt 0:01:52]} 22. Qf6+ {[%emt 0:03:44]
} Kc7 {[%emt 0:00:09]} 23. e5 {[%emt 0:07:11]} dxe5 {[%emt 0:02:04]} 24. dxe5 {
[%emt 0:00:08]} Rh8 {[%emt 0:02:42]} 25. Qd6+ {[%emt 0:04:04]} Kc8 {[%emt 0:00:
00]} 26. Qd2 {[%emt 0:00:30]} Bg4 {[%emt 0:05:00]} 27. Rf1 {[%emt 0:01:44]} Bf5
{[%emt 0:01:15]} 28. e6 {[%emt 0:06:40]} Bxe6 {[%emt 0:06:35]} 29. Bxe6+ {
[%emt 0:00:20]} Qxe6 {[%emt 0:00:04]} 30. Rff7 {[%emt 0:00:17]} 1-0